{"text_format":"1","workbook":"xlsx","n_sheets":7,"sheets":["О программе","Инструкция","Списки","Эпидемический период","Эпизодический период","Сводный отчет","Скрытый"],"not_rendered":{"charts":0,"images":47,"macros":1,"external_links":0,"defined_names":1,"comments":2,"pivot_tables":0},"unopened":[],"bounds":{"document_bytes":16777216,"sheet_cells":100000,"rows_first":2000,"rows_last":500,"rows_between":2000,"halvings":0,"cell_chars":16384,"cell_head_chars":4096},"cells_cut":0,"cells_raw":0,"read":"whole","date_system":"1900"}

{"sheet":"О программе","index":0,"n_rows":0,"n_cols":0,"rows_kept":0,"cut":false,"hidden":false,"merged":[]}

{"sheet":"Инструкция","index":1,"n_rows":175,"n_cols":16,"rows_kept":175,"cut":false,"hidden":false,"merged":[[9,1,9,20],[2,6,2,20],[5,1,5,20],[6,1,6,20],[7,1,7,20],[8,1,8,20]]}
[null,"Сервис \"Расчет расхода дезинфицирующих средств в амбулаторно-поликлинических организациях\""]
[]
[null,"Видеоинструкция по пользованию:",null,null,null,null,"https://www.youtube.com/watch?v=wGd2wvXlZ-s"]
[]
[]
[null,"Начало работы с программой"]
[null,"Заполнение данных об организации"]
[null,"Заполнение листа \"Списки\""]
[null,"Заполнение листов расчета"]
[null,"Формирование сводного отчета"]
[]
[]
[null,"Начало работы с программой"]
[null,"Рекомендуемые требования к ПО: Microsoft Excel от версии 2013."]
[]
[null,"При первом открытии программы возможно появление следующего уведомления:"]
[]
[null,"Необходимо нажать кнопку",null,null,null,null,null,"  , чтобы продолжить работу с программой."]
[null,"!","Перед началом работы необходимо убедиться, что включены макросы."]
[]
[null,"Сделать это можно следующим образом:"]
[]
[]
[]
[]
[]
[null,"Либо при открытии может появиться следующее предупреждение:"]
[]
[]
[null,"Необходимо нажать кнопку \"Включить содержимое\"."]
[null,"!","Самостоятельное удаление (добавление) строк, столбцов, листов может привести к сбоям в работе программы!"]
[]
[null,"Заполнение данных об организации"]
[]
[null,"При открытии программы появляется следующее окно:"]
[]
[null,"В данном окне необходимо ввести (изменить) данные, которые автоматически будут подставлены"]
[null,"в соответствующие ячейки листа \"Списки\", а также на листы с расчетом."]
[]
[null,"Пример:"]
[]
[]
[]
[]
[null,"Пример отображения данных на листе  \"Списки\"."]
[]
[]
[]
[null,"!","Изменение данных в форме ввода либо на листе \"Списки\" приведет к изменению данных в соответствующих ячейках на листах с расчетом за каждый месяц."]
[]
[]
[null,"Заполнение листа \"Списки\""]
[]
[null,"На данном листе содержится 4 вида списков:",null,null,null,null,null,"Для удобного перехода к нужному списку можно воспользоваться кнопками навигации:"]
[null,"·         \"Отделения\";"]
[null,"·         \"Помещения\";"]
[null,"·         \"Изделия\";"]
[null,"·         \"Контейнеры\"."]
[]
[]
[null,"!","Перед выполнением расчета необходимо убедиться, что в списках содержатся все значения, касающиеся вашей организации."]
[]
[null,"При необходимости добавления новых значений в список следует ввести информацию в ячейки, выделенные оранжевой рамкой (внизу таблицы):"]
[]
[]
[null,null,null,null,null,null,null,null,"Поля для ввода записей."]
[null,null,null,null,null,null,null,null,"В ячейки, которые не выделены оранжевой рамкой, вносить записи нельзя."]
[null,null,null,null,null,null,null,null,"После внесения необходимых данных в таблицах можно сделать сортировку, воспользовавшись стандартными функциями Excel."]
[null,null,null,null,null,null,null,null,"Для этого можно нажать на кнопку возле названия списка:"]
[null,null,null,null,null,null,null,null,"В появившемся окне выберите \"Сортировка от А до Я\":"]
[]
[]
[]
[null,"Данные этого листа будут использоваться на листах с расчетом, поэтому необходимо убедиться, что вся информация была внесена в соответствующие списки."]
[null,"Если в списках присутствуют значения, не относящиеся к вашей организации, то удалять их необязательно."]
[]
[]
[]
[]
[null,"Заполнение листов расчета"]
[]
[null,"Расчет производится на следующих листах:"]
[null,"·       ","\"Эпидемический период\";"]
[null,"·       ","\"Эпизодический период\"."]
[null,"Количество месяцев работы в периоде необходимо ввести в следующее поле (ячейка F1): "]
[]
[]
[null,"Формировать структуру организации необходимо на листе \"Эпидемический период\"."]
[null,"Добавление (удаление) отделений, помещений и изделий (оборудования) делается с помощью соответствующих кнопок:"]
[]
[]
[]
[]
[]
[null,"При нажатии кнопок \"+отделение\", \"+помещение\" появится следующее окно:"]
[]
[]
[]
[]
[null,"В раскрывающемся списке необходимо выбрать нужное название. Если нужное отделение (помещение) отсутствует в данном окне, то его следует добавить в соответствующий раздел листа \"Списки\"."]
[null,"По умолчанию при добавлении помещения появляется 25 строк для заполнения изделий."]
[null,"При нажатии на ячейку в столбце \"Наименование изделия\" отобразится кнопка для выбора изделия из списка:"]
[]
[null,"Если предложенного количества строк для заполнения изделий недостаточно, то воспользуйтесь кнопкой для добавления:"]
[]
[null,"После добавления всех строк следует приступить к заполнению данных в таблице."]
[]
[null,"Особенности заполнения таблицы расчета:"]
[]
[null,"·       ","Столбец A. Наименование отделения (помещения). Заполняется с помощью выбора значения из выпадающего списка, появляющегося при нажатии на ячейку. "]
[null,null,"Если в выпадающем списке нет нужного значения, то его необходимо добавить в соответствующую таблицу на листе \"Списки\"."]
[null,"·       ","Столбец B. Наименование изделия. Заполняется с помощью выбора значения из выпадающего списка , появляющегося при нажатии на ячейку. "]
[null,null,"Если в выпадающем списке нет нужного значения, то его необходимо добавить в соответствующую таблицу на листе \"Списки\"."]
[null,"·       ","Столбец D. Расход рабочего раствора,  л на 1 кв. м. Установленное значение по умолчанию - 0,05. Изменить значение можно с помощью  выпадающего списка, появляющегося "]
[null,null,"при нажатии на ячейку, либо ввести значение вручную. "]
[null,null,null,null,null,null,null,null,null,null,null,null,null,null,"Выпадающий список."]
[]
[]
[null,"·       ","Столбец E. Обрабатываемая площадь, кв. м. Заполняется автоматически в соответствии с данными в столбце В. Данные берутся из таблицы на листе \"Списки\"."]
[null,"·       ","Столбец H. Всего расход в месяц, л. Содержит формулу. Данные будут рассчитаны автоматически при вводе значений в соответствующие столбцы."]
[null,"·       ","Столбец J. Всего расход в месяц, л. Содержит формулу. Данные будут рассчитаны автоматически при вводе значений в соответствующие столбцы."]
[null,"·       ","Столбец K. Корректирующий коэффициент. Установленное значение по умолчанию - 1. Изменить значение можно с помощью выпадающего списка, появляющегося"]
[null,null,"при нажатии на ячейку, либо ввести значение вручную. "]
[null,"·       ","Столбец L. Всего расход на текущие уборки, л. Содержит формулу. Данные будут рассчитаны автоматически при вводе значений в соответствующие столбцы."]
[null,"·       ","Столбец M. Метод уборки (протирание, орошение). Заполняется с помощью выбора значения из выпадающего списка, появляющегося при нажатии на ячейку. "]
[]
[null,null,null,null,null,null,null,null," Выпадающий список."]
[]
[null,"·       ","Столбец N. Расход рабочего раствора,  л на 1 кв. м. Установлено значение по умолчанию - 0,05. Изменить значение можно с помощью  выпадающего списка, появляющегося "]
[null,null,"при нажатии на ячейку, либо ввести значение вручную. "]
[null,"·       ","Столбец O. Обрабатываемая площадь, кв. м. Заполняется автоматически в соответствии с данными в столбце В. Данные берутся из таблицы на листе \"Списки\"."]
[null,"·       ","Столбец Q. Метод протирания. Содержит формулу. Данные будут рассчитаны автоматически при вводе значений в соответствующие столбцы."]
[null,"·       ","Столбец R. Метод орошения. Содержит формулу. Данные будут рассчитаны автоматически при вводе значений в соответствующие столбцы."]
[null,"·       ","Столбец S. Корректирующий коэффициент. Установленное значение по умолчанию - 1. Изменить значение можно с помощью  выпадающего списка, появляющегося"]
[null,null,"при нажатии на ячейку, либо ввести значение вручную. "]
[null,"·       ","Столбец T. Всего расход на ген. уборки, л. Содержит формулу. Данные будут рассчитаны автоматически при вводе значений в соответствующие столбцы."]
[null,"·       ","Столбец U. Всего расход дезсредств на изделия  в месяц, л. Содержит формулу. Данные будут рассчитаны автоматически при вводе значений в соответствующие столбцы."]
[null,"·       ","Столбец V. Наименование контейнера. Заполняется с помощью выбора значения из выпадающего списка, появляющегося при нажатии на ячейку. "]
[null,null,"Если в выпадающем списке нет нужного значения, то его необходимо добавить в соответствующую таблицу на листе \"Списки\"."]
[null,"·       ","Столбец W. Емкость контейнера, л. Заполняется автоматически в соответствии с данными в столбце V. Данные берутся из таблицы на листе \"Списки\"."]
[null,"·       ","Столбец Y. Кол-во дезсредств, мл (70 % от емкости). Содержит формулу. Данные будут рассчитаны автоматически при вводе значений в соответствующие столбцы."]
[null,"·       ","Столбец AB. Корректирующий коэффициент. Установленное значение по умолчанию - 1. Изменить значение можно с помощью  выпадающего списка, появляющегося"]
[null,null,"при нажатии на ячейку, либо ввести значение вручную. "]
[null,"·       ","Столбец AC. Всего расход дезсредств на обработку инструментария в месяц, л. Содержит формулу. Данные будут рассчитаны автоматически при вводе значений "]
[null,null,"в соответствующие столбцы."]
[null,"·       ","Столбцы AD - AF. Итоги. Содержат формулу. Данные будут рассчитаны автоматически при вводе значений."]
[]
[]
[null,"При необходимости можно свернуть строки с данными об изделиях.",null,null,null,null,null,null,"Для этого следует нажать на знак \"-\" в левой части рабочего листа."]
[]
[null,null,null,null,null,null,null,null,null,"Результат будет выглядеть следующим образом:"]
[]
[]
[]
[]
[]
[]
[null,"Для возврата к исходному виду необходимо нажать знак \"+\"."]
[]
[null,"После создания структуры организации (выбора всех отделений, помещений и изделий) на листе \"Эпидемический период\" можно скопировать таблицу на лист \"Эпизодический период\"."]
[null,"Для этого необходимо воспользоваться кнопкой ",null,null,null,null,null,null,"          , которая находится на листе \"Эпизодический период\"."]
[]
[null,"При этом информация будет перенесена с листа \"Эпидемический период\" на лист \"Эпизодический период\" (за исключением заполненных данных в столбцах F, I, M, X, Z, AA). "]
[null,"!","Если на листе \"Эпизодический период\" содержатся данные ниже строки 10, то при копировании они будут удалены."]
[null,"!","Копирование структуры может занять некоторое время. Рекомендуется предварительно сохранить изменения и закрыть другие рабочие книги."]
[]
[]
[null,"Формирование сводного отчета"]
[]
[null,"Для формирования сводного отчета необходимо нажать кнопку",null,null,null,null,null,null,null,null,"на листе \"Списки\"."]
[]
[null,"На появившемся листе следует обратить внимание на дату и время, на которое итоги рассчитаны."]
[]
[]
[null,"Если после формирования данной таблицы были внесены изменения в таблицы с расчетом, то необходимо нажать кнопку обновления",null,null,null,null,null,null,null,null,null,null,null,null,null,"      на листе \"Сводный отчет\"."]

{"sheet":"Списки","index":2,"n_rows":72,"n_cols":10,"rows_kept":72,"cut":false,"hidden":false,"merged":[]}
["Наименование организации:"]
["Адрес:"]
[]
["Отделения:",null,"Помещения:",null,"Наименование изделия (оборудования)","Обрабатываемая площадь при ежедневной уборке, кв. м.","Обрабатываемая площадь при генеральной уборке, кв. м.",null,"Наименование контейнера для обработки инструментария:","Емкость, л."]
["__выберите отделение__",null,"__выберите помещение__",null,"__выберите изделие__",null,null,null,"__выберите контейнер__"]
["АДМИНИСТРАЦИЯ",null,"Антирабический кабинет",null,"Ведро для мусора",null,null,null,"контейнер/емкость 0,5 л",0.5]
["ЖЕНСКАЯ КОНСУЛЬТАЦИЯ",null,"Архив",null,"Весы медицинские ВЭМ-150",null,null,null,"контейнер/емкость 1 л",1]
["КЛИНИКО-ДИАГНОСТИЧЕСКАЯ ЛАБОРАТОРИЯ",null,"Бухгалтерия",null,"Дозатор для антисептика (локтевой)",null,null,null,"контейнер/емкость 3 л",3]
["ОТДЕЛЕНИЕ ДНЕВНОГО ПРЕБЫВАНИЯ",null,"Водолечения кабинет",null,"Дозатор жидкого мыла локтевой",null,null,null,"контейнер/емкость 5 л",5]
["ОТДЕЛЕНИЕ МЕДИЦИНСКОЙ РЕАБИЛИТАЦИИ",null,"Врача общей практики кабинет",null,"Компьютер",null,null,null,"контейнер/емкость 6 л",6]
["ОТДЕЛЕНИЕ ОБЩЕЙ ВРАЧЕБНОЙ ПРАКТИКИ № 1",null,"Гардероб",null,"Кресло гинекологическое смотровое",null,null,null,"контейнер/емкость 8 л",8]
["ОТДЕЛЕНИЕ ОБЩЕЙ ВРАЧЕБНОЙ ПРАКТИКИ № 2",null,"Гериатрический кабинет",null,"Кушетка медицинская ",null,null,null,"контейнер/емкость 10 л",10]
["ОТДЕЛЕНИЕ ОБЩЕЙ ВРАЧЕБНОЙ ПРАКТИКИ № 3",null,"Гинекологический кабинет",null,"Подоконник ",null,null,null,"контейнер/емкость 20 л",20]
["ОТДЕЛЕНИЕ ОБЩЕЙ ВРАЧЕБНОЙ ПРАКТИКИ № 4",null,"Гл. медсестры кабинет",null,"Пол",null,null,null,"контейнер/емкость 50 л",50]
["ОТДЕЛЕНИЕ ПРОФИЛАКТИКИ",null,"Глав.врача кабинет",null,"Потолок"]
["ОТДЕЛЕНИЕ УЛЬТРАЗВУКОВОЙ ДИАГНОСТИКИ",null,"Дезинфекции инструментария кабинет",null,"Принтер"]
["ОТДЕЛЕНИЕ ФУНКЦИОНАЛЬНОЙ ДИАГНОСТИКИ",null,"Доврачебный кабинет",null,"Раковина"]
["ОТДЕЛЕНИЕ ЭНДОСКОПИИ",null,"Душевая",null,"Стена"]
["ПРОЦЕДУРНЫЙ КАБИНЕТ",null,"Забора крови кабинет",null,"Стол для емкостей с дезрастворами"]
["РЕГИСТРАТУРА",null,"Заведующего отделением кабинет",null,"Стол медицинский инструментальный"]
["РЕНТГЕНОВСКОЕ ОТДЕЛЕНИЕ",null,"Зам. глав.врача кабинет",null,"Стол медицинский перевязочный"]
["СТОМАТОЛОГИЧЕСКОЕ ОТДЕЛЕНИЕ",null,"Записи КТГ плода кабинет",null,"Стол письменный "]
["ТРАВМО-ХИРУРГИЧЕСКОЕ ОТДЕЛЕНИЕ",null,"Инфекционный кабинет",null,"Столик манипуляционный"]
["УЗКИЕ СПЕЦИАЛИСТЫ",null,"Кадровая служба",null,"Стул для пациента"]
["ФИЗИОТЕРАПЕВТИЧЕСКОЕ ОТДЕЛЕНИЕ",null,"Кардиологический кабинет",null,"Стул для персонала"]
["ЦСО",null,"Комната гигиены",null,"Телефон"]
[null,null,"Комната уборочного инвентаря",null,"Тонометр"]
[null,null,"Косметологический кабинет",null,"Фонендоскоп комбинированный"]
[null,null,"КТ кабинет",null,"Холодильник"]
[null,null,"Лаборатория",null,"Шкаф для документов"]
[null,null,"ЛФК кабинет",null,"Шкаф для медикаментов"]
[null,null,"Манипуляционный кабинет",null,"Шкаф для одежды"]
[null,null,"Массажный кабинет",null,"Шкаф для хранения швабр"]
[null,null,"Медицинской сестры (старшей) кабинет",null,"Шкаф медицинский двухстворчатый"]
[null,null,"Неврологический кабинет",null,"Шкаф медицинский одностворчатый"]
[null,null,"Операционная"]
[null,null,"Оториноларингологический кабинет"]
[null,null,"Офтальмологический кабинет"]
[null,null,"Патологии шейки матки кабинет"]
[null,null,"Перевязочная"]
[null,null,"Помещение хранения отходов"]
[null,null,"Прививочный кабинет"]
[null,null,"Приемная"]
[null,null,"Процедурный кабинет"]
[null,null,"Психиатрический кабинет"]
[null,null,"Психолога кабинет"]
[null,null,"Психотерапевтический кабинет"]
[null,null,"Реабилитологический кабинет"]
[null,null,"Ревматологический кабинет"]
[null,null,"Регистратура"]
[null,null,"Регистрации листков нетрудоспособности кабинет"]
[null,null,"Регистрации пациентов комната"]
[null,null,"Рентгеновский кабинет"]
[null,null,"Рефлексотерапии кабинет"]
[null,null,"Сан.узел"]
[null,null,"Служебное помещение"]
[null,null,"Смотровой кабинет"]
[null,null,"Спелеолечения кабинет"]
[null,null,"Среднего медперсонала кабинет"]
[null,null,"Стоматологический кабинет"]
[null,null,"Травмо-ортопедический кабинет"]
[null,null,"Ультразвуковой диагностики кабинет"]
[null,null,"Урологический кабинет"]
[null,null,"Физиотерапевтический кабинет"]
[null,null,"Флюорографии кабинет"]
[null,null,"Функциональной диагностики кабинет"]
[null,null,"Хирургический кабинет"]
[null,null,"ЭКГ кабинет"]
[null,null,"Экономическая служба"]
[null,null,"Эндокринологический кабинет"]
[null,null,"Эндоскопических исследований кабинет"]
[null,null,"Юридическая служба"]

{"sheet":"Эпидемический период","index":3,"n_rows":10,"n_cols":39,"rows_kept":10,"cut":false,"hidden":false,"merged":[[0,3,0,4],[7,26,9,26],[8,3,9,3],[8,4,9,4],[8,5,9,5],[8,6,8,7],[8,8,8,9],[8,19,9,19],[8,11,9,11],[8,12,9,12],[8,14,9,14],[8,15,9,15],[8,16,8,17],[0,6,0,8],[0,9,0,10],[0,12,0,13],[6,0,9,0],[6,1,6,20],[6,21,6,28],[7,2,9,2],[7,3,7,11],[7,12,7,19],[7,20,9,20],[7,21,9,21],[7,22,9,22],[8,10,9,10],[7,23,9,23],[7,24,9,24],[7,25,9,25],[8,18,9,18],[8,13,9,13],[7,29,9,29],[7,30,9,30],[7,27,9,27],[7,28,9,28],[6,29,6,31],[7,31,9,31]]}
[null,null,null,"Количество месяцев работы в эпидемическом периоде",null,null,"Количество расхода дез.средств за выбранный период:",null,null,"на обработку изделий:",null,{"$f":"ROUND(SUM(AD11:AD49953)/2,2)","v":0},"на обработку инструментария:",null,{"$f":"ROUND(SUM(AE11:AE49980)/2,2)","v":0}]
[{"$f":"Списки!B1","v":0}]
[{"$f":"Списки!B2","v":0}]
[]
[null,null,null,null,null,null,null,null,"Расчет среднего расхода дезинфицирующих средств в организации здравоохранения  за месяц"]
[]
["Наименование отделения/помещения","Расчет расхода дезинфицирующих средств (далее - дезсредства)  на изделия (без инструментария)",null,null,null,null,null,null,null,null,null,null,null,null,null,null,null,null,null,null,null,"Расчет расхода дез.средств на обработку инструментария",null,null,null,null,null,null,null,"Итоги",null,null,null,null,null,null,null,null,1]
[null,null,"Кол-во, шт.","Текущие (ежедневные) уборки",null,null,null,null,null,null,null,null,"Генеральные уборки",null,null,null,null,null,null,null,"Всего расход дезсредств на изделия  в месяц, л","Наименование контейнера","Емкость контейнера, л","Кол-во контейнеров","Кол-во дезсредства, мл \n(70 % от емкости)","Кол-во дней в месяц, когда проводилась обработка","Среднее кол-во обработок в день","Корректирующий коэффициент","Всего расход дезсредств на обработку инструментария в месяц, л","Всего расход дезсредств на изделия за период, л","Всего расход дезсредств на обработку инструментария за период, л","Итого",null,null,null,null,null,null,1]
[null,"Наименование изделия",null,"Расход рабочего раствора,\n л на 1 кв. м","Обрабатываемая площадь, кв. м","Кол-во раб. дней, когда проводилась тек.уборка","метод орошения",null,"метод протирания",null,"Корректирующий коэффициент","Всего расход на текущие уборки, л.","Метод уборки (протирание, орошение)","Расход рабочего раствора,\n л на 1 кв. м","Обрабатываемая площадь, кв. м","Кол-во раб. дней, когда проводилась ген.уборка","всего расход в мес., л",null,"Корректирующий коэффициент","Всего расход на ген. уборки, л",null,null,null,null,null,null,null,null,null,null,null,null,null,null,null,null,null,null,1]
[null,null,null,null,null,null,"кол-во обработок в день","всего расход в месяц, л","кол-во обработок в день","всего расход в месяц, л",null,null,null,null,null,null," метод протирания","метод орошения",null,null,null,null,null,null,null,null,null,null,null,null,null,null,null,null,null,null,null,null,1]

{"sheet":"Эпизодический период","index":4,"n_rows":10,"n_cols":39,"rows_kept":10,"cut":false,"hidden":false,"merged":[[0,3,0,4],[7,26,9,26],[8,3,9,3],[8,4,9,4],[8,5,9,5],[8,6,8,7],[8,8,8,9],[8,18,9,18],[8,19,9,19],[8,11,9,11],[8,12,9,12],[8,13,9,13],[0,6,0,8],[0,9,0,10],[0,12,0,13],[7,27,9,27],[7,28,9,28],[6,29,6,31],[7,29,9,29],[7,30,9,30],[7,31,9,31],[6,0,9,0],[6,1,6,20],[6,21,6,28],[7,2,9,2],[7,3,7,11],[7,12,7,19],[7,20,9,20],[7,21,9,21],[7,22,9,22],[8,10,9,10],[7,23,9,23],[7,24,9,24],[7,25,9,25],[8,14,9,14],[8,15,9,15],[8,16,8,17]]}
[null,null,null,"Количество месяцев работы в эпизодическом периоде",null,null,"Количество расхода дез.средств за выбранный период:",null,null,"на обработку изделий:",null,{"$f":"ROUND(SUM(AD11:AD49992)/2,2)","v":0},"на обработку инструментария:",null,{"$f":"ROUND(SUM(AE11:AE49992)/2,2)","v":0}]
[{"$f":"Списки!B1","v":0}]
[{"$f":"Списки!B2","v":0}]
[]
[null,null,null,null,null,null,null,null,"Расчет среднего расхода дезинфицирующих средств в организации здравоохранения  за месяц"]
[]
["Наименование отделения/помещения","Расчет расхода дезинфицирующих средств (далее - дезсредства)  на изделия (без инструментария)",null,null,null,null,null,null,null,null,null,null,null,null,null,null,null,null,null,null,null,"Расчет расхода дез.средств на обработку инструментария",null,null,null,null,null,null,null,"Итоги",null,null,null,null,null,null,null,null,1]
[null,null,"Кол-во, шт.","Текущие (ежедневные) уборки",null,null,null,null,null,null,null,null,"Генеральные уборки",null,null,null,null,null,null,null,"Всего расход дезсредств на изделия  в месяц, л","Наименование контейнера","Емкость контейнера, л","Кол-во контейнеров","Кол-во дезсредства, мл \n(70 % от емкости)","Кол-во дней в месяц, когда проводилась обработка","Среднее кол-во обработок в день","Корректирующий коэффициент","Всего расход дезсредств на обработку инструментария в месяц, л","Всего расход дезсредств на изделия за период, л","Всего расход дезсредств на обработку инструментария за период, л","Итого",null,null,null,null,null,null,1]
[null,"Наименование изделия",null,"Расход рабочего раствора,\n л на 1 кв. м","Обрабатываемая площадь, кв. м","Кол-во раб. дней, когда проводилась тек.уборка","метод орошения",null,"метод протирания",null,"Корректирующий коэффициент","Всего расход на текущие уборки, л.","Метод уборки (протирание, орошение)","Расход рабочего раствора,\n л на 1 кв. м","Обрабатываемая площадь, кв. м","Кол-во раб. дней, когда проводилась ген.уборка","всего расход в мес., л",null,"Корректирующий коэффициент","Всего расход на ген. уборки, л",null,null,null,null,null,null,null,null,null,null,null,null,null,null,null,null,null,null,1]
[null,null,null,null,null,null,"кол-во обработок в день","всего расход в месяц, л","кол-во обработок в день","всего расход в месяц, л",null,null,null,null,null,null," метод протирания","метод орошения",null,null,null,null,null,null,null,null,null,null,null,null,null,null,null,null,null,null,null,null,1]

{"sheet":"Сводный отчет","index":5,"n_rows":43,"n_cols":4,"rows_kept":43,"cut":false,"hidden":true,"merged":[[5,3,6,3],[0,1,0,2],[5,1,5,2]]}
["Актуально на: ","2022-05-18T16:54:04"]
[{"$f":"Списки!B1","v":0}]
[{"$f":"Списки!B2","v":0}]
[]
[]
[null,"Расхода дезсредств за выбранный период, л.",null,"ИТОГО по отделениям"]
["Наименование отделения","Эпидемический период","Эпизодический период"]
[]
[]
[null,null,null,{"$f":"IF(SUM(B10:C10)=0,\"\",SUM(B10:C10))","v":""}]
[null,null,null,""]
[null,null,null,""]
[null,null,null,""]
[null,null,null,""]
[null,null,null,""]
[null,null,null,""]
[null,null,null,""]
[null,null,null,""]
[null,null,null,""]
[null,null,null,""]
[null,null,null,""]
[null,null,null,""]
[null,null,null,""]
[null,null,null,""]
[null,null,null,""]
[null,null,null,""]
[null,null,null,""]
[null,null,null,""]
[null,null,null,""]
[null,null,null,""]
[null,null,null,""]
[null,null,null,""]
[null,null,null,""]
[null,null,null,""]
[null,null,null,""]
[null,null,null,""]
[null,null,null,""]
["Итого по периодам",{"$f":"SUM(B8:B37)","v":0},{"$f":"SUM(C8:C37)","v":0},0]
[]
[]
["\"__\" _______________ 202__ "]
[]
["Главная медицинская сестра","Подпись","Инициалы, фамилия"]

{"sheet":"Скрытый","index":6,"n_rows":34,"n_cols":39,"rows_kept":34,"cut":false,"hidden":true,"merged":[]}
["Отделение"]
["__выберите отделение__",null,null,null,null,null,null,null,null,null,null,null,null,null,null,null,null,null,null,null,null,null,null,null,null,null,null,null,null,null,null,null,null,null,null,null,null,null,"о"]
[]
["Помещение"]
["__выберите помещение__",null,null,null,null,null,null,null,null,null,null,{"$f":"ROUND(SUM(L6:L31),2)","v":0},null,null,null,null,null,null,null,{"$f":"SUM(T6:T31)","v":0},{"$f":"L5+T5","v":0},null,null,null,null,null,null,null,{"$f":"SUM(AC6:AC31)","v":0},{"$f":"IF(AND(U5<>\"\",$F$1<>\"\"),ROUND(U5*$F$1,2),\"\")","v":""},{"$f":"IF(AND(AC5<>\"\",$F$1<>\"\"),AC5*$F$1,\"\")","v":""},{"$f":"IF(AND(AD5<>\"\",AE5<>\"\"),AD5+AE5,\"\")","v":""},null,null,null,null,null,null,"к"]
[null,null,null,0.05,{"$f":"IFERROR(IF(B6=\"\",\"\",VLOOKUP(B6,Списки!E:F,2,0)),\"\")","v":""},null,null,{"$f":"IF(AND(C6<>\"\",D6<>\"\",E6<>\"\",F6<>\"\",G6<>\"\"),ROUND(C6*D6*E6*F6*G6,2),\"\")","v":""},null,{"$f":"IF(AND(C6<>\"\",D6<>\"\",E6<>\"\",F6<>\"\",I6<>\"\"),ROUND(C6*D6*E6*F6*I6,2),\"\")","v":""},1,{"$f":"IF(AND(H6<>\"\",J6<>\"\"),(H6+J6)*K6,\"\")","v":""},null,0.05,{"$f":"IFERROR(IF(B6=\"\",\"\",VLOOKUP(B6,Списки!E:G,3,0)),\"\")","v":""},null,{"$f":"IF(M6=\"протирание\",IF(AND(N6<>\"\",O6<>\"\",P6<>\"\"),N6*O6*P6,\"\"),0)","v":0},{"$f":"IF(M6=\"орошение\",IF(AND(N6<>\"\",O6<>\"\",P6<>\"\"),N6*O6*P6,\"\"),0)","v":0},1,{"$f":"IF(OR(Q6<>\"\",R6<>\"\"),(Q6+R6)*S6,\"\")","v":0},{"$f":"IF(AND(L6<>\"\",T6<>\"\"),ROUND((L6+T6),2),\"\")","v":""},"__выберите контейнер__",{"$f":"IFERROR(IF(V6=\"\",\"\",VLOOKUP(V6,Списки!I:J,2,0)),\"\")","v":0},null,{"$f":"IF(W6<>\"\",ROUND(W6*0.7,2),\"\")","v":0},null,null,1,{"$f":"IF(AND(X6<>\"\",Y6<>\"\",Z6<>\"\",AA6<>\"\",AB6<>\"\"),ROUND((X6*Y6*Z6*AA6*AB6),2),\"\")","v":""},{"$f":"IF(AND(U6<>\"\",$F$1<>\"\"),ROUND(U6*$F$1,2),\"\")","v":""},{"$f":"IF(AND(AC6<>\"\",$F$1<>\"\"),ROUND(AC6*$F$1,2),\"\")","v":""},{"$f":"IF(AND(AD6<>\"\",AE6<>\"\"),AD6+AE6,\"\")","v":""},null,null,null,null,null,null,"об"]
[null,null,null,0.05,{"$f":"IFERROR(IF(B7=\"\",\"\",VLOOKUP(B7,Списки!E:F,2,0)),\"\")","v":""},null,null,{"$f":"IF(AND(C7<>\"\",D7<>\"\",E7<>\"\",F7<>\"\",G7<>\"\"),ROUND(C7*D7*E7*F7*G7,2),\"\")","v":""},null,{"$f":"IF(AND(C7<>\"\",D7<>\"\",E7<>\"\",F7<>\"\",I7<>\"\"),ROUND(C7*D7*E7*F7*I7,2),\"\")","v":""},1,{"$f":"IF(AND(H7<>\"\",J7<>\"\"),(H7+J7)*K7,\"\")","v":""},null,0.05,{"$f":"IFERROR(IF(B7=\"\",\"\",VLOOKUP(B7,Списки!E:G,3,0)),\"\")","v":""},null,{"$f":"IF(M7=\"протирание\",IF(AND(N7<>\"\",O7<>\"\",P7<>\"\"),N7*O7*P7,\"\"),0)","v":0},{"$f":"IF(M7=\"орошение\",IF(AND(N7<>\"\",O7<>\"\",P7<>\"\"),N7*O7*P7,\"\"),0)","v":0},1,{"$f":"IF(OR(Q7<>\"\",R7<>\"\"),(Q7+R7)*S7,\"\")","v":0},{"$f":"IF(AND(L7<>\"\",T7<>\"\"),ROUND((L7+T7),2),\"\")","v":""},"__выберите контейнер__",{"$f":"IFERROR(IF(V7=\"\",\"\",VLOOKUP(V7,Списки!I:J,2,0)),\"\")","v":0},null,{"$f":"IF(W7<>\"\",ROUND(W7*0.7,2),\"\")","v":0},null,null,1,{"$f":"IF(AND(X7<>\"\",Y7<>\"\",Z7<>\"\",AA7<>\"\",AB7<>\"\"),ROUND((X7*Y7*Z7*AA7*AB7),2),\"\")","v":""},{"$f":"IF(AND(U7<>\"\",$F$1<>\"\"),ROUND(U7*$F$1,2),\"\")","v":""},{"$f":"IF(AND(AC7<>\"\",$F$1<>\"\"),ROUND(AC7*$F$1,2),\"\")","v":""},"",null,null,null,null,null,null,"об"]
[null,null,null,0.05,{"$f":"IFERROR(IF(B8=\"\",\"\",VLOOKUP(B8,Списки!E:F,2,0)),\"\")","v":""},null,null,"",null,"",1,"",null,0.05,{"$f":"IFERROR(IF(B8=\"\",\"\",VLOOKUP(B8,Списки!E:G,3,0)),\"\")","v":""},null,0,0,1,0,"","__выберите контейнер__",{"$f":"IFERROR(IF(V8=\"\",\"\",VLOOKUP(V8,Списки!I:J,2,0)),\"\")","v":0},null,0,null,null,1,"","","","",null,null,null,null,null,null,"об"]
[null,null,null,0.05,{"$f":"IFERROR(IF(B9=\"\",\"\",VLOOKUP(B9,Списки!E:F,2,0)),\"\")","v":""},null,null,"",null,"",1,"",null,0.05,{"$f":"IFERROR(IF(B9=\"\",\"\",VLOOKUP(B9,Списки!E:G,3,0)),\"\")","v":""},null,0,0,1,0,"","__выберите контейнер__",{"$f":"IFERROR(IF(V9=\"\",\"\",VLOOKUP(V9,Списки!I:J,2,0)),\"\")","v":0},null,0,null,null,1,"","","","",null,null,null,null,null,null,"об"]
[null,null,null,0.05,{"$f":"IFERROR(IF(B10=\"\",\"\",VLOOKUP(B10,Списки!E:F,2,0)),\"\")","v":""},null,null,"",null,"",1,"",null,0.05,{"$f":"IFERROR(IF(B10=\"\",\"\",VLOOKUP(B10,Списки!E:G,3,0)),\"\")","v":""},null,0,0,1,0,"","__выберите контейнер__",{"$f":"IFERROR(IF(V10=\"\",\"\",VLOOKUP(V10,Списки!I:J,2,0)),\"\")","v":0},null,0,null,null,1,"","","","",null,null,null,null,null,null,"об"]
[null,null,null,0.05,{"$f":"IFERROR(IF(B11=\"\",\"\",VLOOKUP(B11,Списки!E:F,2,0)),\"\")","v":""},null,null,"",null,"",1,"",null,0.05,{"$f":"IFERROR(IF(B11=\"\",\"\",VLOOKUP(B11,Списки!E:G,3,0)),\"\")","v":""},null,0,0,1,0,"","__выберите контейнер__",{"$f":"IFERROR(IF(V11=\"\",\"\",VLOOKUP(V11,Списки!I:J,2,0)),\"\")","v":0},null,0,null,null,1,"","","","",null,null,null,null,null,null,"об"]
[null,null,null,0.05,{"$f":"IFERROR(IF(B12=\"\",\"\",VLOOKUP(B12,Списки!E:F,2,0)),\"\")","v":""},null,null,"",null,"",1,"",null,0.05,{"$f":"IFERROR(IF(B12=\"\",\"\",VLOOKUP(B12,Списки!E:G,3,0)),\"\")","v":""},null,0,0,1,0,"","__выберите контейнер__",{"$f":"IFERROR(IF(V12=\"\",\"\",VLOOKUP(V12,Списки!I:J,2,0)),\"\")","v":0},null,0,null,null,1,"","","","",null,null,null,null,null,null,"об"]
[null,null,null,0.05,{"$f":"IFERROR(IF(B13=\"\",\"\",VLOOKUP(B13,Списки!E:F,2,0)),\"\")","v":""},null,null,"",null,"",1,"",null,0.05,{"$f":"IFERROR(IF(B13=\"\",\"\",VLOOKUP(B13,Списки!E:G,3,0)),\"\")","v":""},null,0,0,1,0,"","__выберите контейнер__",{"$f":"IFERROR(IF(V13=\"\",\"\",VLOOKUP(V13,Списки!I:J,2,0)),\"\")","v":0},null,0,null,null,1,"","","","",null,null,null,null,null,null,"об"]
[null,null,null,0.05,{"$f":"IFERROR(IF(B14=\"\",\"\",VLOOKUP(B14,Списки!E:F,2,0)),\"\")","v":""},null,null,"",null,"",1,"",null,0.05,{"$f":"IFERROR(IF(B14=\"\",\"\",VLOOKUP(B14,Списки!E:G,3,0)),\"\")","v":""},null,0,0,1,0,"","__выберите контейнер__",{"$f":"IFERROR(IF(V14=\"\",\"\",VLOOKUP(V14,Списки!I:J,2,0)),\"\")","v":0},null,0,null,null,1,"","","","",null,null,null,null,null,null,"об"]
[null,null,null,0.05,{"$f":"IFERROR(IF(B15=\"\",\"\",VLOOKUP(B15,Списки!E:F,2,0)),\"\")","v":""},null,null,"",null,"",1,"",null,0.05,{"$f":"IFERROR(IF(B15=\"\",\"\",VLOOKUP(B15,Списки!E:G,3,0)),\"\")","v":""},null,0,0,1,0,"","__выберите контейнер__",{"$f":"IFERROR(IF(V15=\"\",\"\",VLOOKUP(V15,Списки!I:J,2,0)),\"\")","v":0},null,0,null,null,1,"","","","",null,null,null,null,null,null,"об"]
[null,null,null,0.05,{"$f":"IFERROR(IF(B16=\"\",\"\",VLOOKUP(B16,Списки!E:F,2,0)),\"\")","v":""},null,null,"",null,"",1,"",null,0.05,{"$f":"IFERROR(IF(B16=\"\",\"\",VLOOKUP(B16,Списки!E:G,3,0)),\"\")","v":""},null,0,0,1,0,"","__выберите контейнер__",{"$f":"IFERROR(IF(V16=\"\",\"\",VLOOKUP(V16,Списки!I:J,2,0)),\"\")","v":0},null,0,null,null,1,"","","","",null,null,null,null,null,null,"об"]
[null,null,null,0.05,{"$f":"IFERROR(IF(B17=\"\",\"\",VLOOKUP(B17,Списки!E:F,2,0)),\"\")","v":""},null,null,{"$f":"IF(AND(C17<>\"\",D17<>\"\",E17<>\"\",F17<>\"\",G17<>\"\"),ROUND(C17*D17*E17*F17*G17,2),\"\")","v":""},null,{"$f":"IF(AND(C17<>\"\",D17<>\"\",E17<>\"\",F17<>\"\",I17<>\"\"),ROUND(C17*D17*E17*F17*I17,2),\"\")","v":""},1,{"$f":"IF(AND(H17<>\"\",J17<>\"\"),(H17+J17)*K17,\"\")","v":""},null,0.05,{"$f":"IFERROR(IF(B17=\"\",\"\",VLOOKUP(B17,Списки!E:G,3,0)),\"\")","v":""},null,{"$f":"IF(M17=\"протирание\",IF(AND(N17<>\"\",O17<>\"\",P17<>\"\"),N17*O17*P17,\"\"),0)","v":0},{"$f":"IF(M17=\"орошение\",IF(AND(N17<>\"\",O17<>\"\",P17<>\"\"),N17*O17*P17,\"\"),0)","v":0},1,{"$f":"IF(OR(Q17<>\"\",R17<>\"\"),(Q17+R17)*S17,\"\")","v":0},{"$f":"IF(AND(L17<>\"\",T17<>\"\"),ROUND((L17+T17),2),\"\")","v":""},"__выберите контейнер__",{"$f":"IFERROR(IF(V17=\"\",\"\",VLOOKUP(V17,Списки!I:J,2,0)),\"\")","v":0},null,{"$f":"IF(W17<>\"\",ROUND(W17*0.7,2),\"\")","v":0},null,null,1,{"$f":"IF(AND(X17<>\"\",Y17<>\"\",Z17<>\"\",AA17<>\"\",AB17<>\"\"),ROUND((X17*Y17*Z17*AA17*AB17),2),\"\")","v":""},"","","",null,null,null,null,null,null,"об"]
[null,null,null,0.05,{"$f":"IFERROR(IF(B18=\"\",\"\",VLOOKUP(B18,Списки!E:F,2,0)),\"\")","v":""},null,null,"",null,"",1,"",null,0.05,{"$f":"IFERROR(IF(B18=\"\",\"\",VLOOKUP(B18,Списки!E:G,3,0)),\"\")","v":""},null,0,0,1,0,"","__выберите контейнер__",{"$f":"IFERROR(IF(V18=\"\",\"\",VLOOKUP(V18,Списки!I:J,2,0)),\"\")","v":0},null,0,null,null,1,"","","","",null,null,null,null,null,null,"об"]
[null,null,null,0.05,{"$f":"IFERROR(IF(B19=\"\",\"\",VLOOKUP(B19,Списки!E:F,2,0)),\"\")","v":""},null,null,"",null,"",1,"",null,0.05,{"$f":"IFERROR(IF(B19=\"\",\"\",VLOOKUP(B19,Списки!E:G,3,0)),\"\")","v":""},null,0,0,1,0,"","__выберите контейнер__",{"$f":"IFERROR(IF(V19=\"\",\"\",VLOOKUP(V19,Списки!I:J,2,0)),\"\")","v":0},null,0,null,null,1,"","","","",null,null,null,null,null,null,"об"]
[null,null,null,0.05,{"$f":"IFERROR(IF(B20=\"\",\"\",VLOOKUP(B20,Списки!E:F,2,0)),\"\")","v":""},null,null,"",null,"",1,"",null,0.05,{"$f":"IFERROR(IF(B20=\"\",\"\",VLOOKUP(B20,Списки!E:G,3,0)),\"\")","v":""},null,0,0,1,0,"","__выберите контейнер__",{"$f":"IFERROR(IF(V20=\"\",\"\",VLOOKUP(V20,Списки!I:J,2,0)),\"\")","v":0},null,0,null,null,1,"","","","",null,null,null,null,null,null,"об"]
[null,null,null,0.05,{"$f":"IFERROR(IF(B21=\"\",\"\",VLOOKUP(B21,Списки!E:F,2,0)),\"\")","v":""},null,null,"",null,"",1,"",null,0.05,{"$f":"IFERROR(IF(B21=\"\",\"\",VLOOKUP(B21,Списки!E:G,3,0)),\"\")","v":""},null,0,0,1,0,"","__выберите контейнер__",{"$f":"IFERROR(IF(V21=\"\",\"\",VLOOKUP(V21,Списки!I:J,2,0)),\"\")","v":0},null,0,null,null,1,"","","","",null,null,null,null,null,null,"об"]
[null,null,null,0.05,{"$f":"IFERROR(IF(B22=\"\",\"\",VLOOKUP(B22,Списки!E:F,2,0)),\"\")","v":""},null,null,"",null,"",1,"",null,0.05,{"$f":"IFERROR(IF(B22=\"\",\"\",VLOOKUP(B22,Списки!E:G,3,0)),\"\")","v":""},null,0,0,1,0,"","__выберите контейнер__",{"$f":"IFERROR(IF(V22=\"\",\"\",VLOOKUP(V22,Списки!I:J,2,0)),\"\")","v":0},null,0,null,null,1,"","","","",null,null,null,null,null,null,"об"]
[null,null,null,0.05,{"$f":"IFERROR(IF(B23=\"\",\"\",VLOOKUP(B23,Списки!E:F,2,0)),\"\")","v":""},null,null,"",null,"",1,"",null,0.05,{"$f":"IFERROR(IF(B23=\"\",\"\",VLOOKUP(B23,Списки!E:G,3,0)),\"\")","v":""},null,0,0,1,0,"","__выберите контейнер__",{"$f":"IFERROR(IF(V23=\"\",\"\",VLOOKUP(V23,Списки!I:J,2,0)),\"\")","v":0},null,0,null,null,1,"","","","",null,null,null,null,null,null,"об"]
[null,null,null,0.05,{"$f":"IFERROR(IF(B24=\"\",\"\",VLOOKUP(B24,Списки!E:F,2,0)),\"\")","v":""},null,null,"",null,"",1,"",null,0.05,{"$f":"IFERROR(IF(B24=\"\",\"\",VLOOKUP(B24,Списки!E:G,3,0)),\"\")","v":""},null,0,0,1,{"$f":"IF(OR(Q24<>\"\",R24<>\"\"),(Q24+R24)*S24,\"\")","v":0},"","__выберите контейнер__",{"$f":"IFERROR(IF(V24=\"\",\"\",VLOOKUP(V24,Списки!I:J,2,0)),\"\")","v":0},null,0,null,null,1,"","","","",null,null,null,null,null,null,"об"]
[null,null,null,0.05,{"$f":"IFERROR(IF(B25=\"\",\"\",VLOOKUP(B25,Списки!E:F,2,0)),\"\")","v":""},null,null,"",null,"",1,"",null,0.05,{"$f":"IFERROR(IF(B25=\"\",\"\",VLOOKUP(B25,Списки!E:G,3,0)),\"\")","v":""},null,0,0,1,0,"","__выберите контейнер__",{"$f":"IFERROR(IF(V25=\"\",\"\",VLOOKUP(V25,Списки!I:J,2,0)),\"\")","v":0},null,0,null,null,1,"","","","",null,null,null,null,null,null,"об"]
[null,null,null,0.05,{"$f":"IFERROR(IF(B26=\"\",\"\",VLOOKUP(B26,Списки!E:F,2,0)),\"\")","v":""},null,null,"",null,"",1,"",null,0.05,{"$f":"IFERROR(IF(B26=\"\",\"\",VLOOKUP(B26,Списки!E:G,3,0)),\"\")","v":""},null,0,0,1,0,"","__выберите контейнер__",{"$f":"IFERROR(IF(V26=\"\",\"\",VLOOKUP(V26,Списки!I:J,2,0)),\"\")","v":0},null,0,null,null,1,"","","","",null,null,null,null,null,null,"об"]
[null,null,null,0.05,{"$f":"IFERROR(IF(B27=\"\",\"\",VLOOKUP(B27,Списки!E:F,2,0)),\"\")","v":""},null,null,"",null,"",1,"",null,0.05,{"$f":"IFERROR(IF(B27=\"\",\"\",VLOOKUP(B27,Списки!E:G,3,0)),\"\")","v":""},null,0,0,1,0,"","__выберите контейнер__",{"$f":"IFERROR(IF(V27=\"\",\"\",VLOOKUP(V27,Списки!I:J,2,0)),\"\")","v":0},null,0,null,null,1,"","","","",null,null,null,null,null,null,"об"]
[null,null,null,0.05,{"$f":"IFERROR(IF(B28=\"\",\"\",VLOOKUP(B28,Списки!E:F,2,0)),\"\")","v":""},null,null,"",null,"",1,"",null,0.05,{"$f":"IFERROR(IF(B28=\"\",\"\",VLOOKUP(B28,Списки!E:G,3,0)),\"\")","v":""},null,0,0,1,0,"","__выберите контейнер__",{"$f":"IFERROR(IF(V28=\"\",\"\",VLOOKUP(V28,Списки!I:J,2,0)),\"\")","v":0},null,0,null,null,1,"","","","",null,null,null,null,null,null,"об"]
[null,null,null,0.05,{"$f":"IFERROR(IF(B29=\"\",\"\",VLOOKUP(B29,Списки!E:F,2,0)),\"\")","v":""},null,null,"",null,"",1,"",null,0.05,{"$f":"IFERROR(IF(B29=\"\",\"\",VLOOKUP(B29,Списки!E:G,3,0)),\"\")","v":""},null,0,0,1,0,"","__выберите контейнер__",{"$f":"IFERROR(IF(V29=\"\",\"\",VLOOKUP(V29,Списки!I:J,2,0)),\"\")","v":0},null,0,null,null,1,"","","","",null,null,null,null,null,null,"об"]
[null,null,null,0.05,{"$f":"IFERROR(IF(B30=\"\",\"\",VLOOKUP(B30,Списки!E:F,2,0)),\"\")","v":""},null,null,"",null,"",1,"",null,0.05,{"$f":"IFERROR(IF(B30=\"\",\"\",VLOOKUP(B30,Списки!E:G,3,0)),\"\")","v":""},null,0,0,1,0,"","__выберите контейнер__",{"$f":"IFERROR(IF(V30=\"\",\"\",VLOOKUP(V30,Списки!I:J,2,0)),\"\")","v":0},null,0,null,null,1,"","","","",null,null,null,null,null,null,"об"]
[null,null,null,null,null,null,null,null,null,null,null,null,null,null,null,null,null,null,null,null,null,null,null,null,null,null,null,null,null,null,null,null,null,null,null,null,null,null,"т"]
[]
["Изделие"]
[null,null,null,0.05,{"$f":"IFERROR(IF(B34=\"\",\"\",VLOOKUP(B34,Списки!E:F,2,0)),\"\")","v":""},null,null,{"$f":"IF(AND(C34<>\"\",D34<>\"\",E34<>\"\",F34<>\"\",G34<>\"\"),ROUND(C34*D34*E34*F34*G34,2),\"\")","v":""},null,{"$f":"IF(AND(C34<>\"\",D34<>\"\",E34<>\"\",F34<>\"\",I34<>\"\"),ROUND(C34*D34*E34*F34*I34,2),\"\")","v":""},1,{"$f":"IF(AND(H34<>\"\",J34<>\"\"),(H34+J34)*K34,\"\")","v":""},null,0.05,{"$f":"IFERROR(IF(B34=\"\",\"\",VLOOKUP(B34,Списки!E:G,3,0)),\"\")","v":""},null,{"$f":"IF(M34=\"протирание\",IF(AND(N34<>\"\",O34<>\"\",P34<>\"\"),N34*O34*P34,\"\"),0)","v":0},{"$f":"IF(M34=\"орошение\",IF(AND(N34<>\"\",O34<>\"\",P34<>\"\"),N34*O34*P34,\"\"),0)","v":0},1,{"$f":"IF(OR(Q34<>\"\",R34<>\"\"),(Q34+R34)*S34,\"\")","v":0},{"$f":"IF(AND(L34<>\"\",T34<>\"\"),ROUND((L34+T34),2),\"\")","v":""},"__выберите контейнер__",{"$f":"IFERROR(IF(V34=\"\",\"\",VLOOKUP(V34,Списки!I:J,2,0)),\"\")","v":0},null,{"$f":"IF(W34<>\"\",ROUND(W34*0.7,2),\"\")","v":0},null,null,1,{"$f":"IF(AND(X34<>\"\",Y34<>\"\",Z34<>\"\",AA34<>\"\",AB34<>\"\"),ROUND((X34*Y34*Z34*AA34*AB34),2),\"\")","v":""},{"$f":"IF(AND(U34<>\"\",$F$1<>\"\"),ROUND(U34*$F$1,2),\"\")","v":""},{"$f":"IF(AND(AC34<>\"\",$F$1<>\"\"),ROUND(AC34*$F$1,2),\"\")","v":""},{"$f":"IF(AND(AD34<>\"\",AE34<>\"\"),AD34+AE34,\"\")","v":""},null,null,null,null,null,null,"об"]